[Event "*** Titled Tuesday Blitz"]
[Site "Chess.com"]
[Date "2019.02.05"]
[Round "2"]
[White "Andreikka"]
[Black "Witik"]
[Result "1-0"]
[WhiteElo "2908"]
[BlackElo "2612"]
[TimeControl "180+2"]
[EndTime "13:22:37 PST"]
[Termination "Andreikka won by resignation"]

1. d4 {[%clk 0:03:01.1]} 1... g6 {[%clk 0:02:52.3]} 2. Nf3 {[%clk 0:03:01.1]}
2... Bg7 {[%clk 0:02:53.1]} 3. g3 {[%clk 0:03:03]} 3... d5 {[%clk 0:02:48.8]} 4.
Bg2 {[%clk 0:03:03.7]} 4... Nf6 {[%clk 0:02:49.6]} 5. O-O {[%clk 0:03:05.2]}
5... O-O {[%clk 0:02:50.5]} 6. c4 {[%clk 0:03:06.6]} 6... c6 {[%clk 0:02:50.7]}
7. Qb3 {[%clk 0:03:07.5]} 7... a5 {[%clk 0:02:44.2]} 8. Bf4 {[%clk 0:03:06.9]}
8... a4 {[%clk 0:02:42.7]} 9. Qb4 {[%clk 0:03:08.3]} 9... dxc4 {[%clk
0:02:28.8]} 10. Qxc4 {[%clk 0:03:08.5]} 10... Nbd7 {[%clk 0:02:27.7]} 11. Qc1
{[%clk 0:03:06]} 11... Nd5 {[%clk 0:02:19.4]} 12. Bh6 {[%clk 0:03:05.7]} 12...
N7f6 {[%clk 0:02:09.5]} 13. Bxg7 {[%clk 0:03:06.4]} 13... Kxg7 {[%clk
0:02:11.4]} 14. Nbd2 {[%clk 0:03:07.6]} 14... Bf5 {[%clk 0:01:48.7]} 15. Re1
{[%clk 0:03:07.4]} 15... Ne4 {[%clk 0:01:47.8]} 16. Nc4 {[%clk 0:03:04.3]} 16...
Nd6 {[%clk 0:01:42.3]} 17. Nfd2 {[%clk 0:02:59.3]} 17... Be6 {[%clk 0:01:36.7]}
18. Ne5 {[%clk 0:02:55.1]} 18... Nf6 {[%clk 0:01:25.9]} 19. a3 {[%clk
0:02:51.1]} 19... Qb6 {[%clk 0:01:21.1]} 20. e3 {[%clk 0:02:52.5]} 20... Bd5
{[%clk 0:01:10.7]} 21. Bf1 {[%clk 0:02:49.1]} 21... h5 {[%clk 0:01:03.9]} 22. h3
{[%clk 0:02:43]} 22... Ra5 {[%clk 0:00:58.7]} 23. Nd3 {[%clk 0:02:42.5]} 23...
h4 {[%clk 0:00:57.6]} 24. g4 {[%clk 0:02:42.3]} 24... Nfe4 {[%clk 0:00:55.8]}
25. Nb4 {[%clk 0:02:18.6]} 25... f5 {[%clk 0:00:54.5]} 26. f4 {[%clk 0:01:19.3]}
26... g5 {[%clk 0:00:51.1]} 27. Nf3 {[%clk 0:01:13.3]} 27... fxg4 {[%clk
0:00:48.7]} 28. hxg4 {[%clk 0:01:15.2]} 28... gxf4 {[%clk 0:00:48.5]} 29. exf4
{[%clk 0:01:16.3]} 29... h3 {[%clk 0:00:37.1]} 30. f5 {[%clk 0:01:07.8]} 30...
h2+ {[%clk 0:00:33.1]} 31. Kxh2 {[%clk 0:01:07]} 31... Rh8+ {[%clk 0:00:33.9]}
32. Kg1 {[%clk 0:01:08.5]} 32... Bf7 {[%clk 0:00:28.5]} 33. Qf4 {[%clk
0:01:03.1]} 33... c5 {[%clk 0:00:29.1]} 34. Nd3 {[%clk 0:01:03.4]} 34... c4
{[%clk 0:00:25.7]} 35. Nb4 {[%clk 0:00:59.9]} 35... Nf6 {[%clk 0:00:04.4]} 36.
Rxe7 {[%clk 0:00:57.8]} 36... Kf8 {[%clk 0:00:03.3]} 37. Rae1 {[%clk 0:00:57.1]}
37... Nxf5 {[%clk 0:00:04]} 38. gxf5 {[%clk 0:00:53.3]} 38... Rg8+ {[%clk
0:00:05.3]} 39. Bg2 {[%clk 0:00:52.5]} 39... Qd8 {[%clk 0:00:04.2]} 40. Qh6+
{[%clk 0:00:46.6]} 1-0

[Event "*** Titled Tuesday Blitz"]
[Site "Chess.com"]
[Date "2019.02.05"]
[Round "2"]
[White "gmjlh"]
[Black "GMMatamoros"]
[Result "1-0"]
[WhiteElo "2696"]
[BlackElo "2518"]
[TimeControl "180+2"]
[EndTime "13:22:41 PST"]
[Termination "gmjlh won by resignation"]

1. d4 {[%clk 0:03:01.9]} 1... Nf6 {[%clk 0:02:58.6]} 2. c4 {[%clk 0:02:59.8]}
2... e6 {[%clk 0:02:59]} 3. Nf3 {[%clk 0:02:57.8]} 3... d5 {[%clk 0:02:58]} 4.
Nc3 {[%clk 0:02:53.1]} 4... Be7 {[%clk 0:02:56.6]} 5. Bf4 {[%clk 0:02:52.4]}
5... O-O {[%clk 0:02:56.7]} 6. e3 {[%clk 0:02:53.4]} 6... b6 {[%clk 0:02:57.7]}
7. Bd3 {[%clk 0:02:51.7]} 7... dxc4 {[%clk 0:02:58.1]} 8. Bxc4 {[%clk
0:02:52.7]} 8... Ba6 {[%clk 0:02:58.8]} 9. Qe2 {[%clk 0:02:53.2]} 9... Bxc4
{[%clk 0:02:58.9]} 10. Qxc4 {[%clk 0:02:55.1]} 10... c5 {[%clk 0:02:55.1]} 11.
dxc5 {[%clk 0:02:57]} 11... Bxc5 {[%clk 0:02:55.3]} 12. O-O {[%clk 0:02:56.1]}
12... Qc8 {[%clk 0:02:45.6]} 13. Rac1 {[%clk 0:02:53.3]} 13... Nbd7 {[%clk
0:02:40.5]} 14. Rfd1 {[%clk 0:02:45.6]} 14... Qb7 {[%clk 0:02:40.3]} 15. Ne5
{[%clk 0:02:29]} 15... Rac8 {[%clk 0:02:29.1]} 16. Nxd7 {[%clk 0:02:23.7]} 16...
Nxd7 {[%clk 0:02:27.9]} 17. Qd3 {[%clk 0:02:14.4]} 17... Nf6 {[%clk 0:02:14]}
18. Bg5 {[%clk 0:02:07.4]} 18... Be7 {[%clk 0:02:11.1]} 19. Nb5 {[%clk
0:00:47.9]} 19... Rfd8 {[%clk 0:01:33.8]} 20. Rxc8 {[%clk 0:00:46.5]} 20... Qxc8
{[%clk 0:01:21.4]} 21. Qe2 {[%clk 0:00:44]} 21... Rxd1+ {[%clk 0:00:39.4]} 22.
Qxd1 {[%clk 0:00:45.9]} 22... Qc5 {[%clk 0:00:22]} 23. Bxf6 {[%clk 0:00:45.3]}
23... Bxf6 {[%clk 0:00:21.2]} 24. Nd4 {[%clk 0:00:46]} 24... Bxd4 {[%clk
0:00:21.3]} 25. exd4 {[%clk 0:00:47.9]} 25... Qd5 {[%clk 0:00:22.4]} 26. b3
{[%clk 0:00:30.2]} 26... g6 {[%clk 0:00:21.5]} 27. Qg4 {[%clk 0:00:30.8]} 27...
h5 {[%clk 0:00:21.5]} 28. Qf4 {[%clk 0:00:30.5]} 28... a5 {[%clk 0:00:20.2]} 29.
h3 {[%clk 0:00:28.4]} 29... Kg7 {[%clk 0:00:21.1]} 30. Qe5+ {[%clk 0:00:14.8]}
30... Qxe5 {[%clk 0:00:19.4]} 31. dxe5 {[%clk 0:00:16.7]} 31... g5 {[%clk
0:00:20]} 32. g4 {[%clk 0:00:17.9]} 32... hxg4 {[%clk 0:00:20.3]} 33. hxg4
{[%clk 0:00:19.8]} 33... Kf8 {[%clk 0:00:21.7]} 34. Kg2 {[%clk 0:00:19.8]} 34...
Ke7 {[%clk 0:00:22.9]} 35. f4 {[%clk 0:00:19.2]} 35... gxf4 {[%clk 0:00:23.1]}
36. Kf3 {[%clk 0:00:20.3]} 36... Kd7 {[%clk 0:00:24.7]} 37. Kxf4 {[%clk
0:00:21.1]} 37... Kc6 {[%clk 0:00:25.1]} 38. Kg5 {[%clk 0:00:22]} 38... Kd5
{[%clk 0:00:26]} 39. Kf6 {[%clk 0:00:23.2]} 39... b5 {[%clk 0:00:25.7]} 40. g5
{[%clk 0:00:20.9]} 40... a4 {[%clk 0:00:24.4]} 41. bxa4 {[%clk 0:00:21.1]} 41...
bxa4 {[%clk 0:00:26.3]} 42. Kxf7 {[%clk 0:00:22.5]} 42... Kc4 {[%clk 0:00:26.6]}
43. g6 {[%clk 0:00:23.9]} 43... Kc3 {[%clk 0:00:28.5]} 44. g7 {[%clk 0:00:25.7]}
44... Kb2 {[%clk 0:00:30.2]} 45. g8=Q {[%clk 0:00:27.6]} 45... Kxa2 {[%clk
0:00:32.1]} 46. Kxe6 {[%clk 0:00:28]} 1-0

[Event "*** Titled Tuesday Blitz"]
[Site "Chess.com"]
[Date "2019.02.05"]
[Round "2"]
[White "Fenil1995"]
[Black "Entilza"]
[Result "1-0"]
[WhiteElo "2156"]
[BlackElo "2201"]
[TimeControl "180+2"]
[EndTime "13:22:46 PST"]
[Termination "Fenil1995 won by resignation"]

1. e4 {[%clk 0:03:01.9]} 1... c6 {[%clk 0:03:00]} 2. Nc3 {[%clk 0:03:00.3]} 2...
d5 {[%clk 0:02:58.8]} 3. Qe2 {[%clk 0:03:02.2]} 3... d4 {[%clk 0:02:43.4]} 4.
Nd1 {[%clk 0:03:00.6]} 4... e5 {[%clk 0:02:43.6]} 5. d3 {[%clk 0:03:00.6]} 5...
g6 {[%clk 0:02:40.9]} 6. f4 {[%clk 0:02:58.7]} 6... Nd7 {[%clk 0:02:37.9]} 7.
Nf3 {[%clk 0:02:58.8]} 7... Bg7 {[%clk 0:02:21.3]} 8. g3 {[%clk 0:02:48.4]} 8...
Ne7 {[%clk 0:02:15.2]} 9. Bg2 {[%clk 0:02:47.3]} 9... O-O {[%clk 0:02:14.1]} 10.
O-O {[%clk 0:02:47.7]} 10... f5 {[%clk 0:01:56.8]} 11. Nf2 {[%clk 0:02:42.5]}
11... exf4 {[%clk 0:01:45.4]} 12. Bxf4 {[%clk 0:02:41.8]} 12... Nf6 {[%clk
0:01:45.5]} 13. Bg5 {[%clk 0:02:29]} 13... h6 {[%clk 0:01:32.2]} 14. Bxf6 {[%clk
0:02:23.1]} 14... Rxf6 {[%clk 0:01:32]} 15. e5 {[%clk 0:02:20.6]} 15... Re6
{[%clk 0:01:27]} 16. c3 {[%clk 0:02:22.5]} 16... c5 {[%clk 0:01:25.4]} 17. b4
{[%clk 0:02:08.1]} 17... Nd5 {[%clk 0:00:51.4]} 18. cxd4 {[%clk 0:02:05.2]}
18... Nc3 {[%clk 0:00:50.3]} 19. Qb2 {[%clk 0:01:57.7]} 19... cxd4 {[%clk
0:00:47.4]} 20. Rae1 {[%clk 0:01:55]} 20... Rb8 {[%clk 0:00:40.7]} 21. Qb3
{[%clk 0:01:36.5]} 21... Kh7 {[%clk 0:00:33.6]} 22. g4 {[%clk 0:01:32.8]} 22...
f4 {[%clk 0:00:28.8]} 23. g5 {[%clk 0:01:21.8]} 23... hxg5 {[%clk 0:00:28]} 24.
Bh3 {[%clk 0:01:14]} 24... Re8 {[%clk 0:00:23.8]} 25. e6 {[%clk 0:01:15]} 25...
Qd5 {[%clk 0:00:20.6]} 26. Qxd5 {[%clk 0:01:15]} 26... Nxd5 {[%clk 0:00:22.5]}
27. Nxg5+ {[%clk 0:01:16.2]} 27... Kg8 {[%clk 0:00:19.8]} 28. Nfe4 {[%clk
0:01:07.9]} 28... Re7 {[%clk 0:00:12.6]} 29. Nd6 {[%clk 0:01:04.3]} 29... b6
{[%clk 0:00:11.3]} 30. Rc1 {[%clk 0:00:46.2]} 30... Ba6 {[%clk 0:00:08.7]} 31.
b5 {[%clk 0:00:47.1]} 31... Bb7 {[%clk 0:00:09.2]} 32. Bg2 {[%clk 0:00:46.8]}
32... Rd8 {[%clk 0:00:04.4]} 33. Nxb7 {[%clk 0:00:34.7]} 33... Rxb7 {[%clk
0:00:06.3]} 34. Bxd5 {[%clk 0:00:27]} 34... Rxd5 {[%clk 0:00:08.2]} 35. Rc8+
{[%clk 0:00:28.5]} 35... Bf8 {[%clk 0:00:09]} 36. Ne4 {[%clk 0:00:29.9]} 36...
Rf5 {[%clk 0:00:08.5]} 37. Nd6 {[%clk 0:00:28.5]} 37... Re7 {[%clk 0:00:09.4]}
38. Nxf5 {[%clk 0:00:29]} 38... gxf5 {[%clk 0:00:10.7]} 39. Rxf4 {[%clk
0:00:30.6]} 39... Rxe6 {[%clk 0:00:11.6]} 40. Rxf5 {[%clk 0:00:32.2]} 40... Re3
{[%clk 0:00:12.2]} 41. Rcxf8+ {[%clk 0:00:31.9]} 1-0

[Event "*** Titled Tuesday Blitz"]
[Site "Chess.com"]
[Date "2019.02.05"]
[Round "2"]
[White "jorquerino"]
[Black "AndrewMcStone"]
[Result "0-1"]
[WhiteElo "2207"]
[BlackElo "2138"]
[TimeControl "180+2"]
[EndTime "13:22:47 PST"]
[Termination "AndrewMcStone won by resignation"]

1. e4 {[%clk 0:03:01.9]} 1... e6 {[%clk 0:03:00.5]} 2. Qe2 {[%clk 0:03:01.7]}
2... c5 {[%clk 0:03:00.4]} 3. g3 {[%clk 0:02:55.9]} 3... Nc6 {[%clk 0:03:01.1]}
4. Nf3 {[%clk 0:02:56.1]} 4... d6 {[%clk 0:03:01.7]} 5. Bg2 {[%clk 0:02:56.6]}
5... g6 {[%clk 0:03:02.8]} 6. O-O {[%clk 0:02:56.2]} 6... Bg7 {[%clk 0:03:04.2]}
7. Rd1 {[%clk 0:02:47.8]} 7... Nge7 {[%clk 0:03:05.4]} 8. c3 {[%clk 0:02:47.4]}
8... e5 {[%clk 0:03:00.4]} 9. Na3 {[%clk 0:02:33.8]} 9... O-O {[%clk 0:02:53.2]}
10. Nc2 {[%clk 0:02:33.9]} 10... Qb6 {[%clk 0:02:23.9]} 11. Ne3 {[%clk
0:02:02.1]} 11... h6 {[%clk 0:02:08.4]} 12. Nc4 {[%clk 0:01:39]} 12... Qc7
{[%clk 0:02:05.2]} 13. d4 {[%clk 0:01:33.6]} 13... cxd4 {[%clk 0:01:46.2]} 14.
cxd4 {[%clk 0:01:33.5]} 14... Nxd4 {[%clk 0:01:44.1]} 15. Nxd4 {[%clk
0:01:29.8]} 15... exd4 {[%clk 0:01:46]} 16. Bf4 {[%clk 0:01:17.6]} 16... Rd8
{[%clk 0:01:28.5]} 17. Rac1 {[%clk 0:01:17.5]} 17... Nc6 {[%clk 0:01:26.8]} 18.
b4 {[%clk 0:01:03.7]} 18... g5 {[%clk 0:01:12.1]} 19. Bd2 {[%clk 0:00:54.3]}
19... Qe7 {[%clk 0:01:04]} 20. f4 {[%clk 0:00:44.9]} 20... d5 {[%clk 0:00:46.9]}
21. Nb2 {[%clk 0:00:27.5]} 21... dxe4 {[%clk 0:00:38.1]} 22. Qxe4 {[%clk
0:00:24.2]} 22... Bg4 {[%clk 0:00:22.5]} 23. Re1 {[%clk 0:00:21.9]} 23... Qxe4
{[%clk 0:00:20.3]} 24. Bxe4 {[%clk 0:00:21.9]} 24... Re8 {[%clk 0:00:17.7]} 25.
b5 {[%clk 0:00:21.1]} 25... Ne7 {[%clk 0:00:11.6]} 26. Bxb7 {[%clk 0:00:15.9]}
26... Rab8 {[%clk 0:00:10.5]} 27. Bc6 {[%clk 0:00:16.5]} 27... Nxc6 {[%clk
0:00:11.3]} 28. Rxc6 {[%clk 0:00:13.2]} 28... Rxe1+ {[%clk 0:00:11.1]} 29. Bxe1
{[%clk 0:00:13.7]} 29... Bd7 {[%clk 0:00:10.6]} 30. Rc7 {[%clk 0:00:10.4]} 30...
Bxb5 {[%clk 0:00:11.6]} 31. Rxa7 {[%clk 0:00:11.3]} 31... d3 {[%clk 0:00:12.6]}
32. Nd1 {[%clk 0:00:08]} 32... Bc4 {[%clk 0:00:13.7]} 33. Bf2 {[%clk 0:00:07.8]}
33... Rb1 {[%clk 0:00:13.9]} 34. Ra8+ {[%clk 0:00:07.4]} 34... Kh7 {[%clk
0:00:14.3]} 0-1

[Event "*** Titled Tuesday Blitz"]
[Site "Chess.com"]
[Date "2019.02.05"]
[Round "2"]
[White "Perecke"]
[Black "Chess2019Player"]
[Result "1-0"]
[WhiteElo "2043"]
[BlackElo "2023"]
[TimeControl "180+2"]
[EndTime "13:22:49 PST"]
[Termination "Perecke won by resignation"]

1. e4 {[%clk 0:03:01.9]} 1... e6 {[%clk 0:03:00.4]} 2. d4 {[%clk 0:02:59.7]}
2... d5 {[%clk 0:02:57.9]} 3. Nc3 {[%clk 0:02:55.4]} 3... Nf6 {[%clk 0:02:50.7]}
4. e5 {[%clk 0:02:54.6]} 4... Nfd7 {[%clk 0:02:52]} 5. Nce2 {[%clk 0:02:56.2]}
5... c5 {[%clk 0:02:53.6]} 6. c3 {[%clk 0:02:55.8]} 6... Nc6 {[%clk 0:02:50.1]}
7. f4 {[%clk 0:02:49.8]} 7... Be7 {[%clk 0:02:47.4]} 8. Nf3 {[%clk 0:02:40.5]}
8... Qb6 {[%clk 0:02:40.8]} 9. g3 {[%clk 0:02:38.9]} 9... f6 {[%clk 0:02:27.3]}
10. Bh3 {[%clk 0:02:23.2]} 10... Nf8 {[%clk 0:02:13.3]} 11. O-O {[%clk
0:02:12.4]} 11... cxd4 {[%clk 0:01:56.9]} 12. cxd4 {[%clk 0:02:09]} 12... Bd7
{[%clk 0:01:53.9]} 13. Be3 {[%clk 0:01:33.1]} 13... Ng6 {[%clk 0:01:34]} 14.
exf6 {[%clk 0:01:20.6]} 14... gxf6 {[%clk 0:01:08.8]} 15. a3 {[%clk 0:00:54.2]}
15... e5 {[%clk 0:01:04.9]} 16. Bxd7+ {[%clk 0:00:48.4]} 16... Kxd7 {[%clk
0:01:06.8]} 17. fxe5 {[%clk 0:00:48.3]} 17... fxe5 {[%clk 0:01:08.7]} 18. Bf2
{[%clk 0:00:24.3]} 18... Raf8 {[%clk 0:00:24.3]} 19. dxe5 {[%clk 0:00:14.1]}
19... Qa5 {[%clk 0:00:12.7]} 20. b4 {[%clk 0:00:14.2]} 20... Qc7 {[%clk
0:00:11.8]} 21. Qxd5+ {[%clk 0:00:14.3]} 21... Kc8 {[%clk 0:00:13.2]} 22. Nfd4
{[%clk 0:00:14.2]} 22... Nxd4 {[%clk 0:00:09.6]} 23. Nxd4 {[%clk 0:00:14.7]}
23... Qxe5 {[%clk 0:00:08.1]} 24. Qxe5 {[%clk 0:00:07.7]} 24... Nxe5 {[%clk
0:00:10]} 25. Be3 {[%clk 0:00:07.8]} 25... Bf6 {[%clk 0:00:09.9]} 26. Rac1+
{[%clk 0:00:06.3]} 26... Kb8 {[%clk 0:00:10.3]} 27. Rxf6 {[%clk 0:00:05.5]}
27... Rxf6 {[%clk 0:00:10.4]} 28. Bf4 {[%clk 0:00:05.8]} 28... Re8 {[%clk
0:00:09.7]} 29. Re1 {[%clk 0:00:04]} 29... Rxf4 {[%clk 0:00:02.2]} 30. gxf4
{[%clk 0:00:05.9]} 30... Rd8 {[%clk 0:00:03.2]} 31. fxe5 {[%clk 0:00:04.8]}
31... Rxd4 {[%clk 0:00:04.1]} 32. e6 {[%clk 0:00:05.7]} 32... Kc7 {[%clk
0:00:03.3]} 33. e7 {[%clk 0:00:05.7]} 33... Rg4+ {[%clk 0:00:05.1]} 34. Kh1
{[%clk 0:00:05.5]} 1-0

[Event "*** Titled Tuesday Blitz"]
[Site "Chess.com"]
[Date "2019.02.05"]
[Round "2"]
[White "FrankieJay"]
[Black "djogrodek1"]
[Result "1-0"]
[WhiteElo "2383"]
[BlackElo "2396"]
[TimeControl "180+2"]
[EndTime "13:22:52 PST"]
[Termination "FrankieJay won by resignation"]

1. e4 {[%clk 0:02:47.3]} 1... c5 {[%clk 0:02:56.8]} 2. Nf3 {[%clk 0:02:48]} 2...
d6 {[%clk 0:02:57]} 3. d4 {[%clk 0:02:49.3]} 3... cxd4 {[%clk 0:02:58.8]} 4.
Nxd4 {[%clk 0:02:50.6]} 4... Nf6 {[%clk 0:03:00.7]} 5. Nc3 {[%clk 0:02:49.3]}
5... g6 {[%clk 0:03:01.8]} 6. Be3 {[%clk 0:02:50.1]} 6... Bg7 {[%clk 0:02:54.1]}
7. f3 {[%clk 0:02:50.9]} 7... O-O {[%clk 0:02:55.7]} 8. Qd2 {[%clk 0:02:52]}
8... Nc6 {[%clk 0:02:49.2]} 9. O-O-O {[%clk 0:02:52.8]} 9... d5 {[%clk
0:02:50.7]} 10. exd5 {[%clk 0:02:44.5]} 10... Nxd5 {[%clk 0:02:52.6]} 11. Nxc6
{[%clk 0:02:44.9]} 11... bxc6 {[%clk 0:02:53.7]} 12. Bd4 {[%clk 0:02:46.4]}
12... Bxd4 {[%clk 0:02:54]} 13. Qxd4 {[%clk 0:02:47.2]} 13... Qb6 {[%clk
0:02:55.9]} 14. Na4 {[%clk 0:02:47.3]} 14... Qa5 {[%clk 0:02:55.7]} 15. b3
{[%clk 0:02:41.6]} 15... Be6 {[%clk 0:02:56.7]} 16. g3 {[%clk 0:02:22.4]} 16...
Rfd8 {[%clk 0:02:56.7]} 17. Qc5 {[%clk 0:02:18.3]} 17... Qc7 {[%clk 0:02:57.6]}
18. f4 {[%clk 0:02:01.9]} 18... Nxf4 {[%clk 0:01:37.6]} 19. Rxd8+ {[%clk
0:01:55.7]} 19... Rxd8 {[%clk 0:01:39.5]} 20. gxf4 {[%clk 0:01:43.9]} 20...
Qxf4+ {[%clk 0:01:41.4]} 21. Kb2 {[%clk 0:01:45]} 21... Rd1 {[%clk 0:01:43]} 22.
Ka3 {[%clk 0:01:04.9]} 22... Rxf1 {[%clk 0:01:16.8]} 23. Rxf1 {[%clk 0:01:05.7]}
23... Qxf1 {[%clk 0:01:18.7]} 24. Qxe7 {[%clk 0:01:06.7]} 24... Qc1+ {[%clk
0:01:19.3]} 25. Nb2 {[%clk 0:00:53.8]} 25... Qxc2 {[%clk 0:01:19]} 26. Qxa7
{[%clk 0:00:54.5]} 26... Qxh2 {[%clk 0:01:13.1]} 27. Qa8+ {[%clk 0:00:55.6]}
27... Kg7 {[%clk 0:01:13.7]} 28. Qxc6 {[%clk 0:00:57.5]} 28... h5 {[%clk
0:01:15.3]} 29. Qc3+ {[%clk 0:00:55]} 29... Kh7 {[%clk 0:01:15.3]} 30. b4 {[%clk
0:00:56.2]} 30... h4 {[%clk 0:01:10.9]} 31. b5 {[%clk 0:00:55.5]} 31... Qg3
{[%clk 0:01:09.7]} 32. Nd1 {[%clk 0:00:54.2]} 32... Qd6+ {[%clk 0:00:57.2]} 33.
Qb4 {[%clk 0:00:55.5]} 33... Qxd1 {[%clk 0:00:56.4]} 34. Qxh4+ {[%clk
0:00:56.9]} 34... Kg8 {[%clk 0:00:56.5]} 35. b6 {[%clk 0:00:54.7]} 35... Qc1+
{[%clk 0:00:56.6]} 36. Ka4 {[%clk 0:00:53]} 36... Qc2+ {[%clk 0:00:57.5]} 37.
Kb5 {[%clk 0:00:52.5]} 37... Qxa2 {[%clk 0:00:27.2]} 38. Qd8+ {[%clk 0:00:52.7]}
38... Kg7 {[%clk 0:00:26.8]} 39. Qd4+ {[%clk 0:00:53.7]} 39... f6 {[%clk
0:00:25.8]} 40. b7 {[%clk 0:00:50.4]} 40... Qb3+ {[%clk 0:00:20.2]} 41. Kc6
{[%clk 0:00:51.7]} 41... Qf3+ {[%clk 0:00:16]} 42. Kc7 {[%clk 0:00:51.3]} 42...
Qg3+ {[%clk 0:00:16.5]} 43. Qd6 {[%clk 0:00:48.9]} 43... Qc3+ {[%clk 0:00:16.6]}
44. Kd8 {[%clk 0:00:45.4]} 44... Qa5+ {[%clk 0:00:12.8]} 45. Qc7+ {[%clk
0:00:46.9]} 45... Qxc7+ {[%clk 0:00:14.4]} 46. Kxc7 {[%clk 0:00:48.8]} 46... g5
{[%clk 0:00:16.1]} 47. b8=Q {[%clk 0:00:50.3]} 47... g4 {[%clk 0:00:17.3]} 48.
Kd6 {[%clk 0:00:51.3]} 48... Bf7 {[%clk 0:00:17.7]} 49. Ke7 {[%clk 0:00:52.6]}
49... Kg6 {[%clk 0:00:18.4]} 50. Qd6 {[%clk 0:00:51.2]} 1-0

[Event "*** Titled Tuesday Blitz"]
[Site "Chess.com"]
[Date "2019.02.05"]
[Round "2"]
[White "twitchTriniCupid"]
[Black "sandager"]
[Result "1-0"]
[WhiteElo "2253"]
[BlackElo "2125"]
[TimeControl "180+2"]
[EndTime "13:22:57 PST"]
[Termination "twitchTriniCupid won on time"]

1. d4 {[%clk 0:03:01]} 1... Nf6 {[%clk 0:02:59.6]} 2. c4 {[%clk 0:03:01.7]} 2...
g6 {[%clk 0:03:00.5]} 3. Nc3 {[%clk 0:03:02.6]} 3... d5 {[%clk 0:03:01.9]} 4.
Nf3 {[%clk 0:03:02.5]} 4... Bg7 {[%clk 0:03:02.4]} 5. Bf4 {[%clk 0:03:02.1]}
5... O-O {[%clk 0:03:01]} 6. e3 {[%clk 0:03:03.4]} 6... c5 {[%clk 0:03:01]} 7.
dxc5 {[%clk 0:03:02.5]} 7... Be6 {[%clk 0:03:01.7]} 8. Ng5 {[%clk 0:02:58.7]}
8... Qa5 {[%clk 0:02:56.1]} 9. Qa4 {[%clk 0:02:54.7]} 9... Qxa4 {[%clk
0:02:45.7]} 10. Nxa4 {[%clk 0:02:56.6]} 10... Ne4 {[%clk 0:02:44.8]} 11. Nxe6
{[%clk 0:02:11.4]} 11... fxe6 {[%clk 0:02:43.6]} 12. f3 {[%clk 0:01:45.8]} 12...
Nf6 {[%clk 0:02:38]} 13. O-O-O {[%clk 0:01:25.5]} 13... Nc6 {[%clk 0:02:37.8]}
14. Bg5 {[%clk 0:01:24.7]} 14... Rfd8 {[%clk 0:02:23.7]} 15. Be2 {[%clk
0:01:17.9]} 15... Rac8 {[%clk 0:02:21.8]} 16. Kb1 {[%clk 0:01:18.2]} 16... Kf7
{[%clk 0:01:55.1]} 17. Rhe1 {[%clk 0:01:18.2]} 17... h6 {[%clk 0:01:16.9]} 18.
Bh4 {[%clk 0:01:17.3]} 18... g5 {[%clk 0:01:17.4]} 19. Bf2 {[%clk 0:01:10.7]}
19... Ne8 {[%clk 0:01:04.5]} 20. h4 {[%clk 0:01:07]} 20... Nc7 {[%clk
0:01:02.3]} 21. Rh1 {[%clk 0:00:58.3]} 21... Ne5 {[%clk 0:00:44.4]} 22. hxg5
{[%clk 0:00:58]} 22... hxg5 {[%clk 0:00:44.6]} 23. cxd5 {[%clk 0:00:54]} 23...
exd5 {[%clk 0:00:43.5]} 24. Bg3 {[%clk 0:00:46.3]} 24... Ne6 {[%clk 0:00:41.8]}
25. Rc1 {[%clk 0:00:45.9]} 25... Nd7 {[%clk 0:00:38.7]} 26. b4 {[%clk
0:00:44.4]} 26... a5 {[%clk 0:00:38]} 27. a3 {[%clk 0:00:44]} 27... axb4 {[%clk
0:00:38.9]} 28. axb4 {[%clk 0:00:45.1]} 28... Ra8 {[%clk 0:00:40.1]} 29. Nb2
{[%clk 0:00:46.1]} 29... Ra3 {[%clk 0:00:35.2]} 30. e4 {[%clk 0:00:44]} 30... d4
{[%clk 0:00:20.7]} 31. Bc4 {[%clk 0:00:43.9]} 31... Rda8 {[%clk 0:00:20.4]} 32.
Rhd1 {[%clk 0:00:40.7]} 32... Ne5 {[%clk 0:00:19.4]} 33. Bxe5 {[%clk 0:00:39.7]}
33... Bxe5 {[%clk 0:00:18.9]} 34. Kc2 {[%clk 0:00:38.8]} 34... Re3 {[%clk
0:00:17.2]} 35. Nd3 {[%clk 0:00:31.6]} 35... Bf4 {[%clk 0:00:13.4]} 36. Ra1
{[%clk 0:00:24.9]} 36... Re2+ {[%clk 0:00:13.3]} 37. Kb3 {[%clk 0:00:26.3]}
37... Rxa1 {[%clk 0:00:12.8]} 38. Rxa1 {[%clk 0:00:28.2]} 38... Rxg2 {[%clk
0:00:12.7]} 39. Ra7 {[%clk 0:00:28.3]} 39... Kf6 {[%clk 0:00:04.6]} 40. Rxb7
{[%clk 0:00:29.3]} 40... Be3 {[%clk 0:00:02.3]} 41. Rb6 {[%clk 0:00:30.1]} 1-0